fUST/lending_fUST_20250630
["ID","MTS","AMOUNT","RATE_DAILY","PERIOD"]
[368664966,1751281844664,-151.0,0.000195,2]
[368664967,1751281844673,-244.523509,0.000195,2]
[368664968,1751281844684,-244.523509,0.000195,2]
[368664969,1751281844693,-151.0,0.000195,2]
[368664970,1751281844702,-301.058636,0.000195,2]
[368664971,1751281844712,-151.0,0.00019515,2]
[368664972,1751281844722,-151.0,0.00019515,2]
[368664973,1751281844731,-244.523509,0.00019515,2]
[368664974,1751281844740,-244.523509,0.00019515,2]
[368664975,1751281844750,-151.0,0.00019515,2]
[368664976,1751281844760,-666.7607332,0.00019515,2]
[368664977,1751281844772,-508.86,0.00019515,2]
[368664978,1751281844784,-1747.00465169,0.00019515,2]
[368664979,1751281844793,-1813.44169078,0.00019586,2]
[368664980,1751281844978,-550.73773191,0.00019586,2]
[368664981,1751281844997,-2641.86668255,0.00019586,2]
[368664982,1751281845007,-25000.0,0.00019586,2]
[368664983,1751281845016,-151.0,0.00019586,2]
[368664984,1751281845025,-151.0,0.00019586,2]
[368664985,1751281845035,-244.523509,0.00019586,2]
[368664986,1751281845043,-244.523509,0.00019586,2]
[368664987,1751281845053,-151.0,0.00019586,2]
[368664988,1751281845063,-172.785604,0.00019586,2]
[368664989,1751281845072,-500.0,0.00019587,2]
[368664990,1751281845082,-151.0,0.00019597,2]
[368664991,1751281845091,-151.0,0.00019597,2]
[368664992,1751281845101,-151.0,0.00019597,2]
[368664993,1751281845111,-151.0,0.00019597,2]
[368664994,1751281845120,-151.0,0.00019597,2]
[368664995,1751281845130,-151.0,0.00019597,2]
[368664996,1751281845140,-151.0,0.00019597,2]
[368664997,1751281845150,-500.0,0.00019645,2]
[368664998,1751281845159,-500.0,0.00019676,2]
[368664999,1751281845169,-1000.0,0.00019693,5]
[368665000,1751281845180,-76444.19371,0.00019705,2]
[368665001,1751281845190,-151.0,0.00019706,2]
[368665002,1751281845200,-151.0,0.00019706,2]
[368665003,1751281845210,-460.0,0.00019706,2]
[368665004,1751281845220,-730.21,0.00019706,2]
[368665005,1751281845230,-460.0,0.00019706,2]
[368665006,1751281845240,-1667.0,0.00019706,2]
[368665007,1751281845250,-460.0,0.00019706,2]
[368665008,1751281845261,-480.6,0.00019706,2]
[368665009,1751281845272,-1115.84,0.00019706,2]
[368665010,1751281845282,-801.5,0.00019706,2]
[368665011,1751281845292,-460.0,0.00019706,2]
[368665012,1751281845302,-798.03,0.00019706,2]
[368665013,1751281845312,-460.0,0.00019706,2]
[368665014,1751281845321,-460.0,0.00019706,2]
[368665015,1751281845331,-460.0,0.00019706,2]
[368665016,1751281845340,-460.0,0.00019706,2]
[368665017,1751281845350,-460.0,0.00019706,2]
[368665018,1751281845359,-460.0,0.00019706,2]
[368665019,1751281845368,-282.69,0.00019706,2]
[368665020,1751281845377,-460.0,0.00019706,2]
[368665021,1751281845387,-460.0,0.00019706,2]
[368665022,1751281845397,-460.0,0.00019706,2]
[368665023,1751281845406,-460.0,0.00019706,2]
[368665024,1751281845415,-460.0,0.00019706,2]
[368665025,1751281845425,-639.97,0.00019706,2]
[368665026,1751281845434,-151.0,0.00019707,2]
[368665027,1751281845443,-151.0,0.00019707,2]
[368665028,1751281845453,-151.0,0.00019707,2]
[368665029,1751281845462,-151.0,0.00019707,2]
[368665030,1751281845472,-460.0,0.00019707,2]
[368665031,1751281845482,-518.34286554,0.00019707,2]
[368665032,1751281845491,-704.83,0.00019707,2]
[368665033,1751281845501,-351.33,0.00019707,2]
[368665034,1751281845513,-460.0,0.00019707,2]
[368665035,1751281845526,-582.55,0.00019707,2]
[368665036,1751281845535,-460.0,0.00019707,2]
[368665037,1751281845546,-1692.45,0.00019707,2]
[368665038,1751281845556,-460.0,0.00019707,2]
[368665039,1751281845565,-1278.56,0.00019707,2]
[368665040,1751281845574,-460.0,0.00019707,2]
[368665041,1751281845586,-460.0,0.00019707,2]
[368665042,1751281845595,-602.97931625,0.00019707,2]
[368665043,1751281845605,-495.15,0.00019707,2]
[368665044,1751281845615,-460.0,0.00019707,2]
[368665045,1751281845624,-489.73,0.00019707,2]
[368665046,1751281845633,-151.0,0.00019708,2]
[368665047,1751281845642,-151.0,0.00019708,2]
[368665048,1751281845652,-151.0,0.00019708,2]
[368665049,1751281845661,-151.0,0.00019708,2]
[368665050,1751281845672,-500.0,0.00019723,2]
[368665051,1751281845682,-150.122,0.00019724,2]
[368665052,1751281845691,-151.0,0.00019728,2]
[368665053,1751281845701,-151.0,0.00019728,2]
[368665054,1751281845711,-244.523509,0.00019728,2]
[368665055,1751281845722,-244.523509,0.00019728,2]
[368665056,1751281845731,-151.0,0.00019728,2]
[368665057,1751281845741,-168.0,0.00019745,2]
[368665058,1751281845751,-500.0,0.00019764,2]
[368665059,1751281845760,-409.04576848,0.00019764,2]
[368665060,1751281845770,-151.0,0.00019764,2]
[368665061,1751281845780,-151.0,0.00019764,2]
[368665062,1751281845790,-151.0,0.00019764,2]
[368665063,1751281845800,-188.840919,0.00019764,2]
[368665064,1751281845809,-151.0,0.00019764,2]
[368665065,1751281845819,-213.883,0.00019764,2]
[368665066,1751281845828,-248.989,0.00019764,2]
[368665067,1751281845838,-249.539,0.00019764,2]
[368665068,1751281845848,-259.136,0.00019764,2]
[368665069,1751281845858,-216.371,0.00019764,2]
[368665070,1751281845868,-968.174,0.00019764,2]
[368665071,1751281845878,-2151.0,0.00019764,2]
[368665072,1751281845887,-646.0,0.00019764,2]
[368665073,1751281845897,-406.0,0.00019764,2]
[368665074,1751281845906,-423.35,0.00019764,2]
[368665075,1751281845917,-784.51753027,0.00019766,2]
[368665076,1751281845929,-500.0,0.00019778,2]
[368665077,1751281845939,-500.0,0.00019779,2]
[368665078,1751281845952,-330.0,0.00019825,2]
[368665079,1751281845962,-906.428,0.00019828,2]
[368665080,1751281845973,-460.0,0.0001998,2]
[368665081,1751281845983,-730.21,0.0001998,2]
[368665082,1751281845993,-1667.0,0.0001998,2]
[368665083,1751281846003,-1115.84,0.0001998,2]
[368665084,1751281846012,-801.5,0.0001998,2]
[368665085,1751281846022,-194.6,0.0001998,2]
[368665086,1751281846032,-798.03,0.0001998,2]
[368665087,1751281846042,-460.0,0.0001998,2]
[368665088,1751281846051,-460.0,0.0001998,2]
[368665089,1751281846061,-460.0,0.0001998,2]
[368665090,1751281846070,-505.56,0.0001998,2]
[368665091,1751281846080,-331.64,0.0001998,2]
[368665092,1751281846090,-460.0,0.0001998,2]
[368665093,1751281846099,-639.97,0.0001998,2]
[368665094,1751281846109,-151.0,0.00019981,2]
[368665095,1751281846119,-151.0,0.00019981,2]
[368665096,1751281846128,-151.0,0.00019981,2]
[368665097,1751281846138,-460.0,0.00019981,2]
[368665098,1751281846147,-704.83,0.00019981,2]
[368665099,1751281846157,-460.0,0.00019981,2]
[368665100,1751281846166,-582.55,0.00019981,2]
[368665101,1751281846176,-460.0,0.00019981,2]
[368665102,1751281846186,-1692.45,0.00019981,2]
[368665103,1751281846196,-400.77303576,0.00019981,2]
[368665104,1751281846206,-1278.56,0.00019981,2]
[368665105,1751281846215,-460.0,0.00019981,2]
[368665106,1751281846224,-460.0,0.00019981,2]
[368665107,1751281846234,-460.0,0.00019981,2]
[368665108,1751281846244,-489.73,0.00019981,2]
[368665110,1751281846253,-151.0,0.00019982,2]
[368665111,1751281846263,-151.0,0.00019982,2]
[368665112,1751281846273,-151.0,0.00019982,2]
[368665113,1751281846282,-188.068299,0.00019982,2]
[368665114,1751281846291,-151.0,0.00019983,2]
[368665115,1751281846301,-500.0,0.00019983,2]
[368665116,1751281846311,-151.0,0.00019983,2]
[368665117,1751281846320,-151.0,0.00019983,2]
[368665118,1751281846329,-283.797807,0.00019983,2]
[368665119,1751281846339,-244.523509,0.00019983,2]
[368665120,1751281846348,-244.523509,0.00019983,2]
[368665121,1751281846357,-151.0,0.00019983,2]
[368665122,1751281846367,-592.796233,0.00019986,2]
[368665123,1751281846376,-604.22,0.00019989,2]
[368665124,1751281846385,-151.0,0.0001999,2]
[368665125,1751281846395,-558.55125164,0.0002,2]
[368665126,1751281846405,-500.0,0.0002,3]
[368665127,1751281846414,-641.0,0.0002,2]
[368665128,1751281846424,-348.70013626,0.00020012,2]
[368665129,1751281846433,-302.71347648,0.00020079,2]
[368665130,1751281846442,-160.0,0.00020084,4]
[368665131,1751281846452,-151.0,0.00020121,3]
[368665132,1751281846462,-1000.0,0.00020135,2]
[368665133,1751281846472,-151.0,0.00020141,2]
[368665134,1751281846483,-209.304793,0.00020187,2]
[368665135,1751281846492,-500.0,0.00020192,2]
[368665136,1751281846502,-500.0,0.00020192,2]
[368665137,1751281846513,-215.0738,0.00020243,2]
[368665138,1751281846523,-330.0,0.0002025,2]
[368665139,1751281846532,-460.0,0.00020254,2]
[368665140,1751281846541,-730.21,0.00020254,2]
[368665141,1751281846551,-1667.0,0.00020254,2]
[368665142,1751281846561,-1115.84,0.00020254,2]
[368665143,1751281846571,-801.5,0.00020254,2]
[368665144,1751281846581,-798.03,0.00020254,2]
[368665146,1751281846591,-460.0,0.00020254,2]
[368665148,1751281846601,-460.0,0.00020254,2]
[368665150,1751281846609,-460.0,0.00020254,2]
[368665151,1751281846620,-460.0,0.00020254,2]
[368665152,1751281846629,-639.97,0.00020254,2]
[368665153,1751281846639,-198.633695,0.00020255,2]
[368665154,1751281846650,-460.0,0.00020255,2]
[368665155,1751281846660,-704.83,0.00020255,2]
[368665156,1751281846670,-582.55,0.00020255,2]
[368665157,1751281846679,-460.0,0.00020255,2]
[368665158,1751281846688,-1692.45,0.00020255,2]
[368665159,1751281846698,-1278.56,0.00020255,2]
[368665160,1751281846707,-460.0,0.00020255,2]
[368665161,1751281846716,-460.0,0.00020255,2]
[368665162,1751281846726,-460.0,0.00020255,2]
[368665163,1751281846735,-489.73,0.00020255,2]
[368665164,1751281846745,-241.1086903,0.00020274,2]
[368665165,1751281846754,-306.0,0.00020274,2]
[368665166,1751281846764,-784.51753027,0.00020281,2]
[368665167,1751281846773,-1000.0,0.00020312,2]
[368665168,1751281846783,-1001.60636709,0.00020326,2]
[368665169,1751281846793,-243.52696279,0.00020327,2]
[368665170,1751281846803,-151.0,0.00020327,2]
[368665171,1751281846812,-244.523509,0.00020327,2]
[368665172,1751281846821,-244.523516,0.00020327,2]
[368665173,1751281846831,-151.0,0.00020327,2]
[368665174,1751281846840,-151.0,0.0002033,4]
[368665175,1751281846850,-151.0,0.00020348,2]
[368665176,1751281846859,-151.0,0.00020348,2]
[368665177,1751281846869,-151.0,0.00020348,2]
[368665178,1751281846878,-151.0,0.00020348,2]
[368665179,1751281846887,-151.0,0.00020348,2]
[368665180,1751281846897,-153.0,0.00020356,2]
[368665181,1751281846907,-575.4102369,0.00020356,2]
[368665182,1751281846916,-177.5104021,0.00020356,2]
[368665183,1751281846925,-575.4102369,0.00020356,2]
[368665184,1751281846935,-575.4102369,0.00020356,2]
[368665185,1751281846944,-575.4102369,0.00020356,2]
[368665186,1751281846954,-575.4102369,0.00020356,2]
[368665187,1751281846964,-1090.5693854,0.00020356,2]
[368665188,1751281846973,-25057.76247085,0.00020394,2]
[368665189,1751281846982,-151.0,0.00020394,2]
[368665190,1751281846992,-155.0,0.00020394,2]
[368665191,1751281847001,-151.0,0.000204,2]
[368665192,1751281847010,-151.0,0.000204,2]
[368665193,1751281847019,-151.0,0.000204,2]
[368665194,1751281847030,-151.0,0.000204,2]
[368665195,1751281847039,-151.0,0.000204,2]
[368665196,1751281847049,-524.55407094,0.000204,3]
[368665197,1751281847058,-847.41730813,0.000204,3]
[368665198,1751281847068,-160.0,0.000204,3]
[368665199,1751281847077,-213.84631524,0.000204,3]
[368665200,1751281847086,-12569.13231816,0.000204,3]
[368665201,1751281847095,-571.33758794,0.000204,2]
[368665202,1751281847105,-3092.74,0.00020488,2]
[368665203,1751281847115,-199.621872,0.00020497,2]
[368665204,1751281847124,-151.0,0.00020497,2]
[368665205,1751281847133,-151.0,0.00020497,2]
[368665206,1751281847143,-9264.98445676,0.000205,2]
[368665207,1751281847153,-213.84631524,0.000205,3]
[368665208,1751281847163,-151.0,0.00020513,2]
[368665209,1751281847173,-1064.18,0.00020519,3]
[368665210,1751281847183,-532.1,0.00020519,3]
[368665211,1751281847192,-195.37942253,0.00020528,2]
[368665212,1751281847202,-730.21,0.00020528,2]
[368665213,1751281847211,-1667.0,0.00020528,2]
[368665214,1751281847220,-377.27470382,0.00020528,2]
[368665215,1751281847243,-542.66,0.00019158,2]
[368665216,1751281847252,-542.43280307,0.00020528,2]
[368665217,1751281847265,-196.13249311,0.00020528,2]
[368665218,1751281847274,-801.5,0.00020528,2]
[368665219,1751281847284,-798.03,0.00020528,2]
[368665220,1751281847293,-460.0,0.00020528,2]
[368665221,1751281847303,-460.0,0.00020528,2]
[368665222,1751281847312,-460.0,0.00020528,2]
[368665223,1751281847323,-460.0,0.00020528,2]
[368665224,1751281847333,-639.97,0.00020528,2]
[368665225,1751281847342,-460.0,0.00020529,2]
[368665226,1751281847352,-704.83,0.00020529,2]
[368665227,1751281847361,-211.80769875,0.00020529,2]
[368665228,1751281847480,-542.66,0.00019432,2]
[368665229,1751281847490,-542.66,0.00019706,2]
[368665230,1751281847499,-542.66,0.0001998,2]
[368665231,1751281847513,-542.66,0.00020254,2]
[368665232,1751281847522,-542.66,0.00020528,2]
[368665233,1751281847532,-370.74230125,0.00020529,2]
[368665234,1751281847541,-460.0,0.00020529,2]
[368665235,1751281847551,-1692.45,0.00020529,2]
[368665236,1751281847560,-315.72488313,0.00020529,2]
[368665237,1751281847666,-962.83511687,0.00020529,2]
[368665238,1751281847676,-460.0,0.00020529,2]
[368665239,1751281847686,-460.0,0.00020529,2]
[368665240,1751281847696,-460.0,0.00020529,2]
[368665241,1751281847706,-489.73,0.00020529,2]
[368665242,1751281847715,-151.0,0.0002053,2]
[368665243,1751281847725,-155.687662,0.0002053,2]
[368665244,1751281847736,-151.0,0.00020531,2]
[368665245,1751281847746,-151.0,0.00020538,4]
[368665246,1751281847756,-7000.0,0.00020546,2]
[368665247,1751281847766,-500.0,0.00020547,14]
[368665248,1751281847775,-151.0,0.00020548,2]
[368665249,1751281847784,-151.0,0.00020548,2]
[368665250,1751281847794,-151.0,0.00020548,2]
[368665251,1751281847803,-151.0,0.00020548,2]
[368665252,1751281847813,-5692.35,0.000206,2]
[368665253,1751281847823,-330.0,0.0002063,2]
[368665254,1751281847832,-1500.0,0.00020683,2]
[368665255,1751281847842,-1680.0,0.00020685,2]
[368665256,1751281847851,-212.015283,0.000207,30]
[368665257,1751281847861,-187.68442,0.00020729,2]
[368665258,1751281847873,-151.0,0.00020747,4]
[368665259,1751281847882,-151.0,0.00020756,2]
[368665260,1751281847892,-693.20751141,0.00020795,2]
[368665261,1751281847910,-91.31001886,0.00020795,2]
[368665262,1751281847920,-151.0,0.000208,4]
[368665263,1751281847930,-730.21,0.00020802,2]
[368665264,1751281847939,-1667.0,0.00020802,2]
[368665265,1751281847949,-1115.84,0.00020802,2]
[368665266,1751281847958,-801.5,0.00020802,2]
[368665267,1751281847968,-798.03,0.00020802,2]
[368665268,1751281847977,-460.0,0.00020802,2]
[368665269,1751281847987,-460.0,0.00020802,2]
[368665270,1751281847996,-460.0,0.00020802,2]
[368665271,1751281848006,-460.0,0.00020802,2]
[368665272,1751281848015,-639.97,0.00020802,2]
[368665273,1751281848025,-542.66,0.00020802,2]
[368665274,1751281848035,-704.83,0.00020803,2]
[368665275,1751281848045,-582.55,0.00020803,2]
[368665276,1751281848055,-460.0,0.00020803,2]
[368665277,1751281848065,-1692.45,0.00020803,2]
[368665278,1751281848075,-1278.56,0.00020803,2]
[368665279,1751281848084,-460.0,0.00020803,2]
[368665280,1751281848093,-460.0,0.00020803,2]
[368665281,1751281848102,-17.48704696,0.00020803,2]
[368665282,1751281848114,-442.51295304,0.00020803,2]
[368665283,1751281848125,-489.73,0.00020803,2]
[368665284,1751281848134,-263.0,0.00020822,3]
[368665285,1751281848144,-1500.0,0.0002086,2]
[368665286,1751281848154,-151.0,0.00020865,2]
[368665287,1751281848163,-4403.37884682,0.00020866,2]
[368665288,1751281848179,-526.97,0.00020866,2]
[368665296,1751282204127,188.374313,0.00013699,2]
[368665305,1751282396998,8736.92467819,0.00017932,2]
[368665306,1751282397022,10000.0,0.00017932,2]
[368665307,1751282397046,6163.07532181,0.00017932,2]
[368665311,1751282506856,3836.92467819,0.000181,2]
[368665312,1751282506878,1164.55532181,0.000181,2]
[368665330,1751282807562,163.776188,0.0001803,2]
[368665399,1751283031878,-180.19165089,0.00018183,2]
[368665400,1751283031890,-168.05127453,0.00018783,2]
[368665401,1751283031903,-348.0,0.00018872,2]
[368665402,1751283031914,-300.0,0.00018872,2]
[368665403,1751283031926,-609.0,0.00018872,2]
[368665404,1751283031940,-460.0,0.00018882,2]
[368665405,1751283031953,-460.0,0.00018882,2]
[368665406,1751283031965,-460.0,0.00018882,2]
[368665407,1751283031977,-460.0,0.00018882,2]
[368665408,1751283031988,-497.18,0.00018882,2]
[368665409,1751283031999,-131.74297051,0.00018882,2]
[368665431,1751283038071,-328.25702949,0.00018882,2]
[368665432,1751283038082,-338.88167051,0.00018882,2]
[368665433,1751283038125,-447.87832949,0.00018882,2]
[368665434,1751283038135,-512.25848332,0.00018882,2]
[368665435,1751283038285,-96.28151668,0.00018882,2]
[368665436,1751283038296,-862.62,0.00018882,2]
[368665437,1751283038307,-537.65,0.00018882,2]
[368665438,1751283038318,-460.0,0.00018882,2]
[368665439,1751283038329,-460.0,0.00018882,2]
[368665440,1751283038339,-474.5,0.00018882,2]
[368665441,1751283038350,-460.0,0.00018882,2]
[368665442,1751283038361,-491.95,0.00018882,2]
[368665443,1751283038371,-460.0,0.00018882,2]
[368665445,1751283038382,-460.0,0.00018882,2]
[368665447,1751283038393,-460.0,0.00018882,2]
[368665448,1751283038402,-460.0,0.00018882,2]
[368665449,1751283038411,-915.11,0.00018882,2]
[368665450,1751283038420,-306.82598111,0.00018883,2]
[368665451,1751283038430,-186.11495715,0.00018883,2]
[368665452,1751283038439,-460.19,0.00018883,2]
[368665453,1751283038448,-460.0,0.00018883,2]
[368665454,1751283038458,-460.0,0.00018883,2]
[368665455,1751283038468,-460.0,0.00018883,2]
[368665456,1751283038477,-460.0,0.00018883,2]
[368665457,1751283038672,-460.0,0.00018883,2]
[368665458,1751283038688,-460.0,0.00018883,2]
[368665459,1751283038697,-460.0,0.00018883,2]
[368665460,1751283038707,-460.0,0.00018883,2]
[368665461,1751283038716,-460.0,0.00018883,2]
[368665462,1751283038726,-1236.43,0.00018883,2]
[368665463,1751283038735,-460.0,0.00018883,2]
[368665464,1751283038744,-533.12,0.00018883,2]
[368665465,1751283038753,-460.0,0.00018883,2]
[368665466,1751283038763,-460.0,0.00018883,2]
[368665467,1751283038772,-460.0,0.00018883,2]
[368665468,1751283038781,-460.0,0.00018883,2]
[368665469,1751283038791,-460.0,0.00018883,2]
[368665470,1751283038801,-460.0,0.00018883,2]
[368665471,1751283038810,-460.0,0.00018883,2]
[368665472,1751283038819,-566.7,0.00018883,2]
[368665473,1751283038829,-1271.58,0.00018883,2]
[368665474,1751283038839,-492.69,0.00018883,2]
[368665475,1751283038848,-460.0,0.00018883,2]
[368665476,1751283038862,-460.0,0.00018883,2]
[368665477,1751283038871,-461.76858305,0.00018883,2]
[368665478,1751283038883,-460.0,0.00018884,2]
[368665479,1751283038893,-349.89938791,0.00018884,2]
[368665480,1751283038904,-460.0,0.00018884,2]
[368665481,1751283038913,-460.0,0.00018884,2]
[368665482,1751283038923,-460.0,0.00018884,2]
[368665483,1751283038932,-500.0,0.00018884,2]
[368665484,1751283038942,-460.0,0.00018884,2]
[368665485,1751283038951,-460.0,0.00018884,2]
[368665486,1751283038961,-460.0,0.00018884,2]
[368665487,1751283038970,-464.76,0.00018884,2]
[368665488,1751283038980,-460.0,0.00018884,2]
[368665489,1751283038990,-460.0,0.00018884,2]
[368665490,1751283038999,-184.67396051,0.00018884,2]
[368665491,1751283039008,-988.58,0.00018884,2]
[368665492,1751283039017,-460.0,0.00018884,2]
[368665493,1751283039027,-460.0,0.00018884,2]
[368665494,1751283039036,-460.0,0.00018884,2]
[368665495,1751283039046,-460.0,0.00018884,2]
[368665496,1751283039055,-460.0,0.00018884,2]
[368665497,1751283039065,-500.0,0.00018899,2]
[368665498,1751283039075,-543.47957885,0.000189,2]
[368665499,1751283039084,-5000.0,0.00019052,2]
[368665500,1751283039093,-207.4,0.00019052,2]
[368665501,1751283039103,-500.0,0.00019052,2]
[368665502,1751283039112,-500.0,0.00019052,2]
[368665503,1751283039122,-500.0,0.00019052,2]
[368665504,1751283039131,-500.0,0.00019052,2]
[368665505,1751283039140,-500.0,0.00019052,2]
[368665506,1751283039151,-500.0,0.00019052,2]
[368665507,1751283039163,-500.0,0.00019052,2]
[368665508,1751283039174,-500.0,0.00019052,2]
[368665509,1751283039183,-500.0,0.00019052,2]
[368665510,1751283039192,-500.0,0.00019052,2]
[368665511,1751283039201,-500.0,0.00019052,2]
[368665512,1751283039211,-500.0,0.00019052,2]
[368665513,1751283039220,-500.0,0.00019052,2]
[368665514,1751283039229,-500.0,0.00019052,2]
[368665515,1751283039239,-500.0,0.00019052,2]
[368665516,1751283039247,-500.0,0.00019052,2]
[368665517,1751283039257,-500.0,0.00019052,2]
[368665518,1751283039266,-460.0,0.00019057,2]
[368665519,1751283039276,-460.0,0.00019057,2]
[368665520,1751283039285,-460.0,0.00019057,2]
[368665521,1751283039294,-214.99848635,0.00019063,2]
[368665522,1751283039304,-12569.13231816,0.00019063,2]
[368665523,1751283039313,-847.41730813,0.00019063,2]
[368665524,1751283039323,-160.0,0.00019063,2]
[368665525,1751283039332,-837.16779106,0.00019063,2]
[368665526,1751283039343,-230.31346914,0.00019063,2]
[368665527,1751283039353,-160.0,0.00019063,2]
[368665528,1751283039362,-213.84631524,0.00019063,2]
[368665529,1751283039371,-500.0,0.00019106,2]
[368665530,1751283039381,-460.0,0.00019156,2]
[368665531,1751283039391,-460.0,0.00019156,2]
[368665532,1751283039400,-786.76,0.00019156,2]
[368665533,1751283039409,-608.54,0.00019156,2]
[368665534,1751283039419,-862.62,0.00019156,2]
[368665535,1751283039428,-537.65,0.00019156,2]
[368665536,1751283039438,-460.0,0.00019156,2]
[368665537,1751283039447,-460.0,0.00019156,2]
[368665538,1751283039456,-460.0,0.00019156,2]
[368665539,1751283039466,-915.11,0.00019156,2]
[368665540,1751283039475,-460.0,0.00019157,2]
[368665541,1751283039484,-460.0,0.00019157,2]
[368665542,1751283039494,-1236.43,0.00019157,2]
[368665543,1751283039503,-533.12,0.00019157,2]
[368665544,1751283039512,-460.0,0.00019157,2]
[368665545,1751283039522,-460.0,0.00019157,2]
[368665546,1751283039531,-1271.58,0.00019157,2]
[368665547,1751283039541,-460.0,0.00019158,2]
[368665548,1751283039550,-500.0,0.00019158,2]
[368665549,1751283039560,-553.42,0.00019158,2]
[368665550,1751283039569,-460.0,0.00019158,2]
[368665551,1751283039579,-988.58,0.00019158,2]
[368665552,1751283039588,-460.0,0.00019158,2]
[368665553,1751283039598,-555.63,0.00019158,2]
[368665554,1751283039607,-460.0,0.00019158,2]
[368665555,1751283039617,-460.0,0.00019158,2]
[368665556,1751283039626,-192.144994,0.00019178,2]
[368665557,1751283039635,-500.0,0.00019384,2]
[368665558,1751283039645,-460.0,0.0001943,2]
[368665559,1751283039654,-460.0,0.0001943,2]
[368665560,1751283039664,-786.76,0.0001943,2]
[368665561,1751283039673,-608.54,0.0001943,2]
[368665562,1751283039683,-862.62,0.0001943,2]
[368665563,1751283039691,-537.65,0.0001943,2]
[368665564,1751283039700,-460.0,0.0001943,2]
[368665565,1751283039709,-460.0,0.0001943,2]
[368665566,1751283039719,-460.0,0.0001943,2]
[368665567,1751283039728,-915.11,0.0001943,2]
[368665568,1751283039737,-460.0,0.00019431,2]
[368665569,1751283039746,-13.52990199,0.00019431,2]
[368665570,1751283040128,-223.68009801,0.00019431,2]
[368665571,1751283040139,-216.31990199,0.00019431,2]
[368665572,1751283040152,-1020.11009801,0.00019431,2]
[368665573,1751283040162,-533.12,0.00019431,2]
[368665574,1751283040172,-382.95425016,0.00019431,2]
[368665595,1751283042918,-77.04574984,0.00019431,2]
[368665597,1751283042928,-460.0,0.00019431,2]
[368665599,1751283042939,-340.67005412,0.00019431,2]
[368665609,1751283043026,-584.76673837,0.00019431,2]
[368665639,1751283045923,-362.31971923,0.000189,2]
[368665640,1751283045934,-346.14320751,0.00019431,2]
[368665641,1751283045943,-460.0,0.00019432,2]
[368665642,1751283045953,-500.0,0.00019432,2]
[368665643,1751283045962,-500.0,0.00019432,2]
[368665644,1751283045972,-460.0,0.00019432,2]
[368665645,1751283045982,-988.58,0.00019432,2]
[368665646,1751283045991,-460.0,0.00019432,2]
[368665647,1751283046001,-460.0,0.00019432,2]
[368665648,1751283046011,-460.0,0.00019432,2]
[368665649,1751283046020,-793.0,0.00019515,2]
[368665650,1751283046030,-151.0550023,0.00019515,2]
[368665651,1751283046040,-151.03776761,0.00019515,2]
[368665652,1751283046049,-151.00208844,0.00019515,2]
[368665653,1751283046059,-793.0,0.00019542,2]
[368665655,1751283046068,-793.0,0.0001957,2]
[368665657,1751283046078,-793.0,0.00019597,2]